fUST/lending_fUST_20250325
["ID","MTS","AMOUNT","RATE_DAILY","PERIOD"]
[356632570,1742862635473,-1165.58,0.00013698,2]
[356632571,1742862635482,-500.0,0.00013698,2]
[356632572,1742862635492,-500.0,0.00013698,2]
[356632573,1742862635501,-877.97,0.00013698,2]
[356632574,1742862635510,-500.0,0.00013698,2]
[356632575,1742862635520,-500.0,0.00013698,2]
[356632576,1742862635529,-2142.48,0.00013698,2]
[356632577,1742862635539,-500.0,0.00013698,2]
[356632578,1742862635548,-592.97426214,0.00013698,2]
[356632579,1742862635557,-500.0,0.00013698,2]
[356632580,1742862635567,-500.0,0.00013698,2]
[356632581,1742862635576,-607.1,0.00013698,2]
[356632582,1742862635585,-572.14,0.00013698,2]
[356632583,1742862635594,-500.0,0.00013698,2]
[356632584,1742862635604,-500.0,0.00013698,2]
[356632585,1742862635613,-500.0,0.00013698,2]
[356632586,1742862635623,-500.0,0.00013698,2]
[356632587,1742862635633,-500.0,0.00013698,2]
[356632588,1742862635642,-5779.09,0.00013698,2]
[356632589,1742862635651,-1416.41,0.00013698,2]
[356632590,1742862635661,-500.0,0.00013698,2]
[356632591,1742862635670,-500.0,0.00013698,2]
[356632592,1742862635679,-251.33073464,0.00013698,2]
[356632593,1742862635687,-657.74,0.00013698,2]
[356632594,1742862635697,-500.0,0.00013698,2]
[356632595,1742862635706,-500.0,0.00013698,2]
[356632596,1742862635715,-500.0,0.00013698,2]
[356632597,1742862635724,-500.0,0.00013698,2]
[356632598,1742862635733,-500.0,0.00013698,2]
[356632599,1742862635742,-500.0,0.00013698,2]
[356632600,1742862635751,-500.0,0.00013698,2]
[356632601,1742862635760,-500.0,0.00013698,2]
[356632602,1742862635769,-651.14,0.00013698,2]
[356632603,1742862635779,-500.0,0.00013698,2]
[356632604,1742862635788,-500.0,0.00013698,2]
[356632605,1742862635797,-500.0,0.00013698,2]
[356632606,1742862635807,-1276.89,0.00013698,2]
[356632607,1742862635816,-500.0,0.00013698,2]
[356632608,1742862635825,-500.0,0.00013698,2]
[356632609,1742862635834,-959.11,0.00013698,2]
[356632610,1742862635844,-5024.85,0.00013698,2]
[356632611,1742862635853,-500.0,0.00013698,2]
[356632612,1742862635862,-500.0,0.00013698,2]
[356632613,1742862635871,-500.0,0.00013698,2]
[356632614,1742862635880,-500.0,0.00013698,2]
[356632615,1742862635890,-500.0,0.00013698,2]
[356632616,1742862635899,-1772.7,0.00013698,2]
[356632617,1742862635908,-500.0,0.00013698,2]
[356632618,1742862635918,-556.74,0.00013698,2]
[356632619,1742862635927,-929.46,0.00013698,2]
[356632620,1742862635936,-500.0,0.00013698,2]
[356632621,1742862635945,-1760.4,0.00013698,2]
[356632622,1742862635955,-1803.31,0.00013698,2]
[356632623,1742862635964,-500.0,0.00013698,2]
[356632624,1742862635973,-500.0,0.00013698,2]
[356632625,1742862635982,-500.0,0.00013698,2]
[356632626,1742862635991,-2042.51,0.00013698,2]
[356632627,1742862636001,-1015.16,0.00013698,2]
[356632628,1742862636011,-500.0,0.00013698,2]
[356632629,1742862636020,-505.12308935,0.00013698,2]
[356632630,1742862636029,-500.0,0.00013698,2]
[356632631,1742862636038,-500.0,0.00013698,2]
[356632632,1742862636047,-500.0,0.00013698,2]
[356632633,1742862636056,-500.0,0.00013698,2]
[356632634,1742862636066,-1194.7,0.00013698,2]
[356632635,1742862636076,-500.0,0.00013698,2]
[356632636,1742862636085,-500.0,0.00013698,2]
[356632637,1742862636095,-576.375241,0.00013698,2]
[356632638,1742862636104,-500.0,0.00013698,2]
[356632639,1742862636113,-500.0,0.00013698,2]
[356632640,1742862636122,-500.0,0.00013698,2]
[356632641,1742862636131,-298.381017,0.00013699,2]
[356632642,1742862636142,-500.0,0.00013699,2]
[356632643,1742862636151,-518.62,0.000137,2]
[356632644,1742862636161,-1915.0,0.00013753,2]
[356632645,1742862636170,-2262.0,0.00013753,2]
[356632646,1742862636180,-541.0,0.00013753,2]
[356632647,1742862636190,-400.0,0.00013753,2]
[356632648,1742862636200,-150.202,0.00013753,2]
[356632649,1742862636210,-152.0,0.00013758,2]
[356632650,1742862636221,-187.2706438,0.000138,2]
[356632651,1742862636230,-386.9890962,0.000138,2]
[356632652,1742862636239,-187.2706438,0.000138,2]
[356632653,1742862636250,-157.4463494,0.000138,2]
[356632654,1742862636259,-151.779995,0.000138,4]
[356632655,1742862636269,-767.65269713,0.00013835,2]
[356632656,1742862636278,-500.0,0.00013836,2]
[356632657,1742862636289,-151.779995,0.00013848,2]
[356632658,1742862636298,-300.0,0.000139,4]
[356632659,1742862636308,-296.46334795,0.00013972,2]
[356632660,1742862636317,-251.88155638,0.00013972,2]
[356632661,1742862636326,-500.0,0.00013972,2]
[356632662,1742862636335,-500.0,0.00013972,2]
[356632663,1742862636345,-513.96115072,0.00013972,2]
[356632664,1742862636354,-500.0,0.00013972,2]
[356632665,1742862636364,-500.0,0.00013972,2]
[356632666,1742862636374,-500.0,0.00013972,2]
[356632667,1742862636384,-500.0,0.00013972,2]
[356632668,1742862636393,-500.0,0.00013972,2]
[356632669,1742862636402,-500.0,0.00013972,2]
[356632670,1742862636411,-500.0,0.00013972,2]
[356632671,1742862636427,-500.0,0.00013972,2]
[356632672,1742862636444,-500.0,0.00013972,2]
[356632673,1742862636454,-500.0,0.00013972,2]
[356632674,1742862636463,-500.0,0.00013972,2]
[356632675,1742862636473,-500.0,0.00013972,2]
[356632676,1742862636482,-500.0,0.00013972,2]
[356632677,1742862636491,-500.0,0.00013972,2]
[356632678,1742862636500,-500.0,0.00013972,2]
[356632679,1742862636510,-500.0,0.00013972,2]
[356632680,1742862636519,-500.0,0.00013972,2]
[356632681,1742862636528,-500.0,0.00013972,2]
[356632682,1742862636538,-500.0,0.00013972,2]
[356632683,1742862636547,-500.0,0.00013972,2]
[356632684,1742862636556,-500.0,0.00013972,2]
[356632685,1742862636565,-500.0,0.00013972,2]
[356632686,1742862636575,-567.5,0.00013972,2]
[356632687,1742862636585,-500.0,0.00013972,2]
[356632688,1742862636594,-500.0,0.00013972,2]
[356632689,1742862636603,-500.0,0.00013972,2]
[356632690,1742862636613,-500.0,0.00013972,2]
[356632691,1742862636622,-500.0,0.00013972,2]
[356632692,1742862636631,-500.0,0.00013972,2]
[356632693,1742862636641,-500.0,0.00013972,2]
[356632694,1742862636651,-500.0,0.00013972,2]
[356632695,1742862636660,-500.0,0.00013972,2]
[356632696,1742862636669,-500.0,0.00013972,2]
[356632697,1742862636678,-500.0,0.00013972,2]
[356632698,1742862636688,-500.0,0.00013972,2]
[356632699,1742862636697,-500.0,0.00013972,2]
[356632700,1742862636707,-519.40609243,0.00013972,2]
[356632701,1742862636716,-1137.42,0.00013972,2]
[356632702,1742862636725,-500.0,0.00013972,2]
[356632703,1742862636735,-500.0,0.00013972,2]
[356632704,1742862636744,-500.0,0.00013972,2]
[356632705,1742862636753,-500.0,0.00013972,2]
[356632706,1742862636763,-500.0,0.00013972,2]
[356632707,1742862636773,-500.0,0.00013972,2]
[356632708,1742862636782,-517.27,0.00013972,2]
[356632709,1742862636791,-500.0,0.00013972,2]
[356632710,1742862636800,-500.0,0.00013972,2]
[356632711,1742862636810,-500.0,0.00013972,2]
[356632712,1742862636819,-1187.63,0.00013972,2]
[356632713,1742862636828,-517.62,0.00013972,2]
[356632714,1742862636838,-1065.02,0.00013972,2]
[356632715,1742862636847,-500.0,0.00013972,2]
[356632716,1742862636856,-330.34482198,0.00013972,2]
[356632717,1742862636866,-500.0,0.00013972,2]
[356632718,1742862636875,-500.0,0.00013972,2]
[356632719,1742862636885,-513.77,0.00013972,2]
[356632720,1742862636895,-519.51,0.00013972,2]
[356632721,1742862636904,-500.0,0.00013972,2]
[356632722,1742862636914,-500.0,0.00013972,2]
[356632723,1742862636924,-500.0,0.00013972,2]
[356632724,1742862636933,-352.53253224,0.00013972,2]
[356632725,1742862637044,-500.0,0.00013972,2]
[356632726,1742862637054,-500.0,0.00013972,2]
[356632727,1742862637064,-500.0,0.00013972,2]
[356632728,1742862637074,-500.0,0.00013972,2]
[356632729,1742862637084,-500.0,0.00013972,2]
[356632730,1742862637094,-500.0,0.00013972,2]
[356632731,1742862637104,-500.0,0.00013972,2]
[356632732,1742862637113,-500.0,0.00013972,2]
[356632733,1742862637122,-500.0,0.00013972,2]
[356632734,1742862637132,-500.0,0.00013972,2]
[356632735,1742862637143,-500.0,0.00013972,2]
[356632736,1742862637153,-666.66,0.00013972,2]
[356632737,1742862637162,-500.0,0.00013972,2]
[356632738,1742862637171,-500.0,0.00013972,2]
[356632739,1742862637181,-500.0,0.00013972,2]
[356632740,1742862637191,-869.58,0.00013972,2]
[356632741,1742862637201,-500.0,0.00013972,2]
[356632742,1742862637212,-500.0,0.00013972,2]
[356632743,1742862637221,-500.0,0.00013972,2]
[356632744,1742862637231,-500.0,0.00013972,2]
[356632745,1742862637240,-500.0,0.00013972,2]
[356632746,1742862637251,-500.0,0.00013972,2]
[356632747,1742862637260,-3264.07,0.00013972,2]
[356632748,1742862637269,-533.89636044,0.00013972,2]
[356632749,1742862637279,-500.0,0.00013972,2]
[356632750,1742862637290,-500.0,0.00013972,2]
[356632751,1742862637300,-543.72018161,0.00013972,2]
[356632752,1742862637309,-500.0,0.00013972,2]
[356632753,1742862637319,-500.0,0.00013972,2]
[356632754,1742862637329,-500.0,0.00013972,2]
[356632755,1742862637338,-919.95,0.00013972,2]
[356632756,1742862637347,-512.87494166,0.00013972,2]
[356632757,1742862637357,-1207.67,0.00013972,2]
[356632759,1742862637367,-500.0,0.00013972,2]
[356632761,1742862637377,-174.649235,0.00013972,2]
[356632763,1742862637386,-500.0,0.00013972,2]
[356632764,1742862637395,-500.0,0.00013972,2]
[356632765,1742862637405,-500.0,0.00013972,2]
[356632766,1742862637414,-989.52,0.00013972,2]
[356632767,1742862637423,-500.0,0.00013972,2]
[356632768,1742862637433,-507.74142179,0.00013972,2]
[356632769,1742862637442,-500.0,0.00013972,2]
[356632770,1742862637451,-319.98670459,0.00013972,2]
[356632771,1742862637460,-500.0,0.00013972,2]
[356632772,1742862637470,-500.0,0.00013972,2]
[356632773,1742862637479,-500.0,0.00013972,2]
[356632774,1742862637489,-500.0,0.00013972,2]
[356632775,1742862637498,-500.0,0.00013972,2]
[356632776,1742862637507,-500.0,0.00013972,2]
[356632777,1742862637517,-500.0,0.00013972,2]
[356632779,1742862637526,-500.0,0.00013972,2]
[356632780,1742862637536,-500.0,0.00013972,2]
[356632781,1742862637553,-500.0,0.00013972,2]
[356632782,1742862637562,-649.28175091,0.00013972,2]
[356632783,1742862637571,-500.0,0.00013972,2]
[356632784,1742862637581,-500.0,0.00013972,2]
[356632785,1742862637591,-500.0,0.00013972,2]
[356632786,1742862637600,-520.94,0.00013972,2]
[356632787,1742862637610,-500.0,0.00013972,2]
[356632788,1742862637620,-500.0,0.00013972,2]
[356632789,1742862637629,-500.0,0.00013972,2]
[356632790,1742862637639,-500.0,0.00013972,2]
[356632791,1742862637648,-500.0,0.00013972,2]
[356632792,1742862637657,-500.0,0.00013972,2]
[356632794,1742862637666,-500.0,0.00013972,2]
[356632795,1742862637675,-500.0,0.00013972,2]
[356632796,1742862637685,-500.0,0.00013972,2]
[356632797,1742862637694,-500.0,0.00013972,2]
[356632798,1742862637703,-500.0,0.00013972,2]
[356632799,1742862637713,-500.0,0.00013972,2]
[356632800,1742862637722,-500.0,0.00013972,2]
[356632801,1742862637732,-500.0,0.00013972,2]
[356632802,1742862637741,-500.0,0.00013972,2]
[356632803,1742862637750,-500.0,0.00013972,2]
[356632804,1742862637760,-500.0,0.00013972,2]
[356632805,1742862637769,-500.0,0.00013972,2]
[356632806,1742862637779,-500.0,0.00013972,2]
[356632807,1742862637788,-500.0,0.00013972,2]
[356632808,1742862637798,-712.51,0.00013972,2]
[356632809,1742862637807,-500.0,0.00013972,2]
[356632810,1742862637817,-845.04,0.00013972,2]
[356632811,1742862637827,-532.63526491,0.00013972,2]
[356632812,1742862637836,-853.61,0.00013972,2]
[356632813,1742862637845,-500.0,0.00013972,2]
[356632814,1742862637855,-500.0,0.00013972,2]
[356632815,1742862637864,-569.62,0.00013972,2]
[356632816,1742862637874,-3098.94,0.00013972,2]
[356632817,1742862637883,-572.34,0.00013972,2]
[356632818,1742862637893,-500.0,0.00013972,2]
[356632819,1742862637902,-976.52,0.00013972,2]
[356632820,1742862637911,-630.81,0.00013972,2]
[356632821,1742862637921,-511.38171716,0.00013972,2]
[356632822,1742862637931,-646.44,0.00013972,2]
[356632823,1742862637941,-549.66,0.00013972,2]
[356632824,1742862637951,-4152.51,0.00013972,2]
[356632825,1742862637961,-1372.39,0.00013972,2]
[356632826,1742862637971,-500.0,0.00013972,2]
[356632827,1742862637980,-1441.2,0.00013972,2]
[356632828,1742862637991,-2257.02,0.00013972,2]
[356632829,1742862638001,-500.0,0.00013972,2]
[356632830,1742862638011,-500.0,0.00013972,2]
[356632831,1742862638021,-500.0,0.00013972,2]
[356632832,1742862638031,-500.0,0.00013972,2]
[356632833,1742862638041,-500.0,0.00013972,2]
[356632834,1742862638051,-1616.84,0.00013972,2]
[356632835,1742862638060,-500.0,0.00013972,2]
[356632836,1742862638070,-526.46735872,0.00013972,2]
[356632837,1742862638079,-1070.47,0.00013972,2]
[356632838,1742862638089,-500.0,0.00013972,2]
[356632839,1742862638099,-500.0,0.00013972,2]
[356632840,1742862638108,-2247.36,0.00013972,2]
[356632841,1742862638118,-500.0,0.00013972,2]
[356632842,1742862638128,-500.0,0.00013972,2]
[356632843,1742862638140,-2719.73,0.00013972,2]
[356632844,1742862638150,-835.48,0.00013972,2]
[356632845,1742862638159,-500.0,0.00013972,2]
[356632846,1742862638169,-500.0,0.00013972,2]
[356632847,1742862638179,-594.73,0.00013972,2]
[356632848,1742862638189,-610.76,0.00013972,2]
[356632849,1742862638200,-1065.21,0.00013972,2]
[356632850,1742862638211,-571.41,0.00013972,2]
[356632851,1742862638222,-500.0,0.00013972,2]
[356632852,1742862638232,-5073.09,0.00013972,2]
[356632853,1742862638241,-500.0,0.00013972,2]
[356632854,1742862638252,-220.64,0.00013972,2]
[356632855,1742862638261,-500.0,0.00013972,2]
[356632856,1742862638272,-500.0,0.00013972,2]
[356632857,1742862638281,-500.0,0.00013972,2]
[356632858,1742862638291,-179.82085359,0.00013972,2]
[356632859,1742862638301,-500.0,0.00013972,2]
[356632860,1742862638310,-500.0,0.00013972,2]
[356632861,1742862638320,-1027.97,0.00013972,2]
[356632862,1742862638330,-500.0,0.00013972,2]
[356632863,1742862638339,-509.27061485,0.00013972,2]
[356632864,1742862638349,-500.0,0.00013972,2]
[356632865,1742862638359,-500.0,0.00013972,2]
[356632866,1742862638368,-500.0,0.00013972,2]
[356632867,1742862638378,-500.0,0.00013972,2]
[356632868,1742862638389,-500.0,0.00013972,2]
[356632869,1742862638398,-500.0,0.00013972,2]
[356632870,1742862638408,-510.97064706,0.00013972,2]
[356632871,1742862638418,-500.0,0.00013972,2]
[356632872,1742862638428,-23257.7011691,0.00013972,2]
[356632873,1742862638614,-296.84335613,0.00013972,2]
[356632874,1742862638630,-501.02,0.00013972,2]
[356632885,1742862639759,-500.0,0.00013298,2]
[356632887,1742862639770,-466.71689226,0.00013298,2]
[356632889,1742862639780,-500.0,0.00013298,2]
[356632891,1742862639790,-500.0,0.00013298,2]
[356632893,1742862639800,-1413.98,0.00013698,2]
[356632895,1742862639810,-474.79098048,0.00013699,2]
[356632897,1742862639821,-25.20901952,0.00013699,2]
[356632899,1742862639831,-500.0,0.00013699,2]
[356632901,1742862639841,-584.86160097,0.00013699,2]
[356632903,1742862639851,-500.0,0.00013699,2]
[356632905,1742862639860,-500.0,0.00013699,2]
[356632907,1742862639870,-500.0,0.00013699,2]
[356632909,1742862639881,-500.0,0.00013699,2]
[356632911,1742862639893,-500.0,0.00013699,2]
[356632913,1742862639903,-500.0,0.00013699,2]
[356632915,1742862639912,-500.0,0.00013699,2]
[356632917,1742862639921,-251.24256958,0.00013699,2]
[356632919,1742862639933,-248.75743042,0.00013699,2]
[356632921,1742862639943,-500.0,0.00013699,2]
[356632923,1742862639952,-500.0,0.00013699,2]
[356632925,1742862639962,-500.0,0.00013699,2]
[356632927,1742862639971,-500.0,0.00013699,2]
[356632929,1742862639981,-213.89671459,0.00013699,2]
[356632936,1742862640037,-286.10328541,0.00013699,2]
[356632938,1742862640047,-500.0,0.00013699,2]
[356632940,1742862640057,-500.0,0.00013699,2]
[356632942,1742862640066,-226.71356102,0.00013699,2]
[356632968,1742862642924,-349.99771275,0.00013698,2]
[356633039,1742862645858,-150.00228725,0.00013698,2]
[356633040,1742862645868,-126.01324297,0.00013698,2]
[356633041,1742862645881,-373.98675703,0.00013698,2]
[356633042,1742862645890,-63.65824297,0.00013698,2]
[356633043,1742862645902,-440.20175703,0.00013698,2]
[356633044,1742862645913,-2068.93,0.00013698,2]
[356633045,1742862646075,-1258.02,0.00013698,2]
[356633046,1742862646085,-500.0,0.00013698,2]
[356633047,1742862646094,-273.28643898,0.00013699,2]
[356633048,1742862646103,-500.0,0.00013699,2]
[356633049,1742862646112,-500.0,0.00013699,2]
[356633050,1742862646121,-500.0,0.00013699,2]
[356633051,1742862646130,-500.0,0.00013699,2]
[356633052,1742862646140,-500.0,0.00013699,2]
[356633053,1742862646149,-335.21553291,0.00013699,2]
[356633054,1742862646159,-500.0,0.00013699,2]
[356633055,1742862646168,-500.0,0.00013699,2]
[356633056,1742862646177,-500.0,0.00013699,2]
[356633057,1742862646186,-500.0,0.00013699,2]
[356633058,1742862646196,-500.0,0.00013699,2]
[356633059,1742862646205,-500.0,0.00013699,2]
[356633060,1742862646216,-500.0,0.00013699,2]
[356633061,1742862646226,-466.76,0.000137,2]
[356633062,1742862646235,-150.646,0.00013753,2]
[356633063,1742862646244,-89427.42547477,0.00013972,2]
[356633064,1742862646255,-641.86,0.00013972,2]
[356633065,1742862646264,-500.0,0.00013972,2]
[356633066,1742862646273,-500.0,0.00013972,2]
[356633067,1742862646282,-500.0,0.00013972,2]
[356633068,1742862646294,-2565.71,0.00013972,2]
[356633069,1742862646303,-713.46,0.00013972,2]
[356633070,1742862646313,-500.0,0.00013972,2]
[356633071,1742862646322,-951.35,0.00013972,2]
[356633072,1742862646332,-2985.6,0.00013972,2]
[356633073,1742862646341,-6005.31,0.00013972,2]
[356633074,1742862646350,-2703.73,0.00013972,2]
[356633075,1742862646360,-1461.12,0.00013972,2]
[356633076,1742862646369,-500.0,0.00013972,2]
[356633077,1742862646378,-500.0,0.00013972,2]
[356633078,1742862646387,-500.0,0.00013972,2]
[356633079,1742862646398,-500.0,0.00013972,2]
[356633080,1742862646407,-2856.76,0.00013972,2]
[356633081,1742862646420,-5852.47,0.00013972,2]
[356633082,1742862646429,-500.0,0.00013972,2]
[356633083,1742862646438,-1261.8,0.00013972,2]
[356633084,1742862646448,-1053.9,0.00013972,2]
[356633085,1742862646457,-1165.58,0.00013972,2]
[356633086,1742862646466,-500.0,0.00013972,2]
[356633087,1742862646476,-500.0,0.00013972,2]
[356633088,1742862646485,-877.97,0.00013972,2]
[356633089,1742862646494,-500.0,0.00013972,2]
[356633090,1742862646503,-500.0,0.00013972,2]
[356633091,1742862646512,-2142.48,0.00013972,2]
[356633092,1742862646522,-500.0,0.00013972,2]
[356633093,1742862646531,-500.0,0.00013972,2]
[356633094,1742862646540,-500.0,0.00013972,2]
[356633095,1742862646550,-607.1,0.00013972,2]
[356633096,1742862646559,-572.14,0.00013972,2]
[356633097,1742862646568,-500.0,0.00013972,2]
[356633098,1742862646578,-500.0,0.00013972,2]
[356633099,1742862646588,-500.0,0.00013972,2]
[356633100,1742862646597,-500.0,0.00013972,2]
[356633101,1742862646607,-500.0,0.00013972,2]
[356633102,1742862646616,-5779.09,0.00013972,2]
[356633103,1742862646626,-1416.41,0.00013972,2]
[356633104,1742862646636,-500.0,0.00013972,2]
[356633105,1742862646646,-500.0,0.00013972,2]
[356633106,1742862646656,-657.74,0.00013972,2]
[356633107,1742862646665,-500.0,0.00013972,2]
[356633108,1742862646674,-500.0,0.00013972,2]
[356633109,1742862646684,-500.0,0.00013972,2]
[356633110,1742862646694,-500.0,0.00013972,2]
[356633111,1742862646703,-500.0,0.00013972,2]
[356633112,1742862646712,-500.0,0.00013972,2]
[356633113,1742862646722,-651.14,0.00013972,2]
[356633114,1742862646731,-500.0,0.00013972,2]
[356633115,1742862646741,-223.34535222,0.00013972,2]
[356633116,1742862646751,-1276.89,0.00013972,2]
[356633117,1742862646760,-500.0,0.00013972,2]
[356633118,1742862646770,-541.6175786,0.00013972,2]
[356633119,1742862646780,-959.11,0.00013972,2]
[356633120,1742862646789,-5024.85,0.00013972,2]
[356633121,1742862646799,-500.0,0.00013972,2]
[356633122,1742862646808,-500.0,0.00013972,2]
[356633123,1742862646818,-500.0,0.00013972,2]
[356633124,1742862646827,-500.0,0.00013972,2]
[356633125,1742862646836,-1772.7,0.00013972,2]
[356633126,1742862646846,-515.59017358,0.00013972,2]
[356633127,1742862646855,-556.74,0.00013972,2]
[356633128,1742862646866,-929.46,0.00013972,2]
[356633129,1742862646875,-500.0,0.00013972,2]
[356633130,1742862646884,-1760.4,0.00013972,2]
[356633131,1742862646894,-1803.31,0.00013972,2]
[356633132,1742862646904,-500.0,0.00013972,2]
[356633133,1742862646914,-2042.51,0.00013972,2]
[356633134,1742862646924,-1015.16,0.00013972,2]
[356633135,1742862646933,-500.0,0.00013972,2]
[356633136,1742862646943,-500.0,0.00013972,2]
[356633137,1742862646953,-500.0,0.00013972,2]
[356633138,1742862646962,-1194.7,0.00013972,2]
[356633139,1742862646972,-500.0,0.00013972,2]
[356633140,1742862646982,-500.0,0.00013972,2]
[356633141,1742862646992,-500.0,0.00013972,2]
[356633142,1742862647002,-500.0,0.00013972,2]
[356633143,1742862647012,-500.0,0.00013972,2]
[356633144,1742862647021,-1413.98,0.00013972,2]
[356633145,1742862647031,-500.0,0.00013972,2]
[356633146,1742862647040,-500.0,0.00013972,2]
[356633147,1742862647050,-503.86,0.00013972,2]
[356633148,1742862647060,-2068.93,0.00013972,2]
[356633149,1742862647070,-1258.02,0.00013972,2]
[356633150,1742862647081,-500.0,0.00013972,2]
[356633151,1742862647090,-388.17309601,0.00013973,2]
[356633152,1742862647099,-500.0,0.00013973,2]
[356633153,1742862647109,-505.01222029,0.00013973,2]
[356633154,1742862647118,-500.0,0.00013973,2]
[356633155,1742862647127,-500.0,0.00013973,2]
[356633156,1742862647137,-500.0,0.00013973,2]
[356633157,1742862647147,-511.26722112,0.00013973,2]
[356633158,1742862647156,-500.0,0.00013973,2]
[356633159,1742862647165,-298.71711669,0.00013973,2]
[356633160,1742862647175,-500.0,0.00013973,2]
[356633161,1742862647184,-500.0,0.00013973,2]
[356633162,1742862647193,-500.0,0.00013973,2]
[356633163,1742862647203,-500.0,0.00013973,2]
[356633164,1742862647213,-261.26570462,0.00013973,2]
[356633165,1742862647224,-199.68151768,0.00013973,2]
[356633166,1742862647233,-502.04053544,0.00013973,2]
[356633167,1742862647242,-500.0,0.00013973,2]
[356633168,1742862647251,-500.0,0.00013973,2]
[356633169,1742862647261,-500.0,0.00013973,2]
[356633170,1742862647270,-641.5913227,0.00013973,2]
[356633171,1742862647280,-500.0,0.00013973,2]
[356633172,1742862647289,-500.0,0.00013973,2]
[356633173,1742862647301,-500.0,0.00013973,2]
[356633174,1742862647310,-500.0,0.00013973,2]
[356633175,1742862647320,-500.0,0.00013973,2]
[356633176,1742862647329,-500.0,0.00013973,2]
[356633177,1742862647338,-246.42275152,0.00014,2]
[356633178,1742862712831,172.999999,0.00010959,2]
[356633220,1742863832023,-1750.95776693,0.00013498,2]
[356633224,1742863832046,-249.9840544,0.00013498,2]
[356633291,1742863837843,-1723.138615,0.00013498,2]
[356633432,1742863843220,-1275.91956367,0.00013498,2]
[356633433,1742863843231,-151.779995,0.00013584,4]
[356633434,1742863843241,-1544.10408579,0.00013598,2]
[356633435,1742863843251,-261.05386804,0.00013598,2]
[356633436,1742863843261,-211.0250623,0.00013695,2]
[356633437,1742863843273,-88.9749377,0.00013695,2]
[356633438,1742863843282,-236.20186586,0.00013696,2]
[356633439,1742863843292,-500.0,0.00013696,2]
[356633440,1742863843303,-356.48738349,0.00013696,2]
[356633442,1742863843315,-143.51261651,0.00013696,2]
[356633444,1742863843325,-500.0,0.00013696,2]
[356633446,1742863843335,-500.0,0.00013696,2]
[356633448,1742863843345,-480.61454352,0.00013696,2]
[356633450,1742863843354,-445.30423268,0.00013697,2]
[356633451,1742863843364,-500.0,0.00013698,2]
[356633452,1742863843375,-500.0,0.00013698,2]
[356633453,1742863843385,-500.0,0.00013698,2]
[356633455,1742863843394,-500.0,0.00013698,2]
[356633456,1742863843404,-500.0,0.00013698,2]
[356633457,1742863843413,-500.0,0.00013698,2]
[356633458,1742863843423,-500.0,0.00013698,2]
[356633459,1742863843433,-500.0,0.00013698,2]
[356633460,1742863843442,-500.0,0.00013698,2]
[356633461,1742863843452,-500.0,0.00013698,2]
[356633462,1742863843461,-205.58151817,0.00013698,2]
[356633463,1742863843470,-500.0,0.00013698,2]
[356633464,1742863843480,-500.0,0.00013698,2]
[356633465,1742863843490,-500.0,0.00013698,2]
[356633466,1742863843502,-500.0,0.00013698,2]